[Event "8th Fischer Heraklion-GM 2022"]
[Site "Heraklion"]
[Date "2022.04.29"]
[Round "4.5"]
[White "Szwed, Jacek"]
[Black "Nikolaidis, Ioannis"]
[Result "1-0"]
[ECO "A48"]
[WhiteElo "2360"]
[BlackElo "2536"]
[Annotator "TA"]
[PlyCount "159"]
[EventDate "2022.04.18"]
[EventType "tourn"]
[EventCountry "GRE"]
[SourceTitle "playchess.com"]
[Source "ChessBase"]
[SourceQuality "1"]
[TimeControl "40/5400+30:1800+30"]

{[%evp 15,159,0,0,-9,8,-6,7,6,17,0,3,-2,31,30,25,18,28,23,35,22,38,36,50,20,23,41,25,0,36,10,15,0,6,-13,-17,-44,-44,-39,-34,-191,-191,-186,-194,-237,-241,-222,-170,-246,-240,-306,-305,-338,-352,-402,-410,-428,-396,-390,-256,-252,-241,-601,-218,-390,0,0,0,0,0,0,0,0,0,0,0,0,12,0,5197,0,0,-35,0,0,317,317,317,317,317,317,317,317,317,317,317,317,372,259,372,372,372,372,493,400,400,400,504,493,429,400,552,372,372,372,443,420,12837,12811,12823,12698,12822,7394,12843,372,12842,12835,12266,589,499,372,29941,372,29953,387,29956,29958,29958,29957,29965,29964,29964,29949,29979,29981,29994,29995]} 1. d4 {[%emt 0:00:32]} Nf6 {[%emt 0:09:46]} 2. Bf4 {[%emt 0:00:12]} g6 {[%emt 0:00:09]} 3. Nf3 {[%emt 0:01:02]} Bg7 {[%emt 0:00:26]} 4. e3 {[%emt 0:00:08]} O-O {[%emt 0:00:10]} 5. Nbd2 {[%emt 0:00:20]} d6 {[%emt 0:00:28]} 6. h3 {[%emt 0:00:47]} Nc6 {[%emt 0:01:35]} 7. c3 {[%emt 0:01:48]} Re8 {[%emt 0:00:36]} 8. Bb5 {[%emt 0:07:36]} Bd7 {[%emt 0:00:23]} 9. O-O {[%emt 0:01:43]} a6 {[%emt 0:02:34]} 10. Ba4 {[%emt 0:01:08]} b5 {[%emt 0:01:23]} 11. Bc2 {[%emt 0:04:44]} (11. Bb3 {seems wilder.} e5 12. Ng5 d5 13. Bg3) 11... e5 {[%emt 0:00:17]} 12. dxe5 {[%emt 0:00:51]} Nxe5 {[%emt 0:01:02]} 13. a4 {[%emt 0:04:17]} Qc8 {[%emt 0:03:47]} 14. Nxe5 {[%emt 0:03:02]} dxe5 {[%emt 0:00:15]} 15. Bg5 {[%emt 0:00:10]} Bc6 {[%emt 0:01:01]} 16. Bxf6 {[%emt 0:01:59]} Bxf6 {[%emt 0:00:12]} 17. Be4 {[%emt 0:00:16]} Bxe4 {[%emt 0:06:28]} 18. Nxe4 {[%emt 0:00:23]} Bg7 {[%emt 0:00:51]} 19. axb5 {[%emt 0:13:35]} Qb7 $1 {[%emt 0:04:37]} 20. Qf3 {[%emt 0:08:46]} Qxb5 {[%emt 0:00:16]} 21. b4 {[%emt 0:02:09]} a5 {[%emt 0:02:57]} 22. Rfb1 {[%emt 0:09:32]} (22. Ng5 Qc4 23. Qe4 (23. bxa5 e4 $17) (23. Rxa5 Rxa5 24. bxa5 e4 $11) 23... Qxe4 24. Nxe4 f5 $11) 22... a4 {[%emt 0:00:57]} 23. Nc5 {[%emt 0:00:18]} Bf8 {[%emt 0:08:22]} 24. Ne4 {[%emt 0:03:33]} (24. Rd1 {keeps more tension.} a3 25. Rd7 Qc4 26. Ne4) 24... Be7 {[%emt 0:00:35]} 25. Ra3 {[%emt 0:12:09]} f5 {[%emt 0:01:24]} 26. Ng3 {[%emt 0:01:14]} Red8 {[%emt 0:09:37]} 27. e4 $2 {[%emt 0:06:02]} ({White should play} 27. Rba1 $15) 27... f4 $19 {[%emt 0:02:01]} 28. Nf1 {[%emt 0:00:19]} c5 {[%emt 0:02:01]} 29. c4 {[%emt 0:03:23]} Qxc4 {[%emt 0:00:20]} 30. b5 {[%emt 0:00:15]} Rd4 {[%emt 0:04:30]} 31. b6 {[%emt 0:01:42]} (31. Rc3 {is a better defense.} Qa2 32. Rcc1) 31... Rb8 {[%emt 0:00:15]} (31... Rxe4 $2 32. Nd2 Qd4 33. Nxe4 $18) 32. Qg4 {[%emt 0:03:31]} Kf7 {[%emt 0:01:16]} (32... Rxe4 33. Nd2 Qc2 34. Qe6+ Kf8 35. Ra2 $11) 33. h4 {[%emt 0:01:26]} Qe6 {[%emt 0:01:18]} (33... Rxe4 $2 34. Qd7 Qd4 35. Qa7 $19) 34. Qe2 {[%emt 0:00:36]} Rxb6 {[%emt 0:00:42]} 35. Rxb6 {[%emt 0:00:22]} Qxb6 {[%emt 0:00:02]} 36. h5 {[%emt 0:00:06]} Qb1 {[%emt 0:04:02]} 37. hxg6+ {[%emt 0:00:25]} hxg6 {[%emt 0:00:10]} 38. Rh3 $2 {[%emt 0:00:11]} (38. Qa6 Qxe4 39. Rh3) 38... Qxe4 $2 {[%emt 0:02:26]} (38... Kg7 {Strongly threatening ...c4.} 39. Ra3 Rxe4) 39. Rh7+ $2 {[%emt 0:00:16]} (39. Qa6 g5 40. Rh8) 39... Kf6 $2 {[%emt 0:17:34]} ({Stronger than} 39... Ke6 40. Qa6+ Rd6 41. Qc8+ Rd7 42. Qg8+ Kd6 43. Qb8+ Ke6 44. Qg8+ Kd6 45. Qb8+ Ke6 46. Qg8+ $11) (39... Kg8 $1 $19 40. Qxe4 Rxe4 41. Rxe7 Re1 42. Re8+ (42. Ra7 $2 e4 $19) 42... Kh7) 40. Qa6+ $1 $11 {[%emt 0:00:00]} Rd6 {[%emt 0:00:00]} 41. Qa7 $1 {[%emt 0:11:19]} Re6 {[%emt 0:01:22]} 42. Qb8 $1 {[%emt 0:00:07]} Kg5 {[%emt 0:10:59]} 43. Qg8 $1 {[%emt 0:05:12]} Qc6 $1 {[%emt 0:00:57]} 44. Qg7 $1 {[%emt 0:08:30]} e4 {[%emt 0:01:41]} 45. g3 {[%emt 0:05:04]} Bd6 {[%emt 0:04:01]} 46. Rh4 {[%emt 0:08:59]} fxg3 $2 {[%emt 0:02:12][%mdl 8192]} (46... Qc7 $11 47. gxf4+ Bxf4 48. Qh6+ Kf5 49. Rxf4+ Qxf4 50. Ne3+ Ke5 51. Nc4+ Kf5 52. Ne3+ Ke5 53. Nc4+ Kf5 54. Ne3+) 47. fxg3 $2 {[%emt 0:00:45]} (47. Qh6+ $18 Kf6 48. Qh8+ Kg5 49. Ne3 gxf2+ 50. Kxf2 Rf6+ 51. Kg2 Rf2+ 52. Kxf2) 47... Qc7 {[%emt 0:05:18]} 48. Qh8 {[%emt 0:02:52]} Bxg3 {[%emt 0:00:34]} (48... Qb8 $5 {[%cal Rb8h8]} 49. Qh7 Bxg3 50. Qh6+ Kf5 51. Ne3+ Kf6 $17) 49. Qh6+ $1 {[%emt 0:00:50]} Kf5 $2 {[%emt 0:02:48][%mdl 8192]} (49... Kf6 $11 {and Black has nothing to worry.} 50. Rg4 Qg7 $1 51. Qg5+ Kf7 52. Nxg3 Qd4+ 53. Kg2 a3 54. Qf4+ Qf6 55. Qc7+ (55. Nxe4 Qxf4 56. Rxf4+ Ke7 $11) 55... Qe7) 50. Ne3+ $18 {[%emt 0:00:07]} Ke5 {[%emt 0:00:13]} 51. Qh8+ {[%emt 0:00:32]} Kd6 {[%emt 0:00:30] [#]} 52. Rh7 $1 {[%emt 0:00:04]} Be5 {[%emt 0:07:17]} 53. Qg8 {[%emt 0:00:48]} Qxh7 {[%emt 0:04:38]} 54. Qxh7 {[%emt 0:00:11]} Bd4 {[%emt 0:00:01]} 55. Kf2 {[%emt 0:00:29]} a3 {[%emt 0:01:09]} 56. Qa7 {[%emt 0:00:47]} Ke5 {[%emt 0:04:23]} (56... Rf6+ $142 57. Ke2 Rf3 58. Nc4+ Ke6 59. Nxa3 Rf2+ 60. Ke1 Rg2 61. Qa6+ Kf5 62. Qf1+ Rf2) 57. Ke2 $18 {[%emt 0:00:30]} Bxe3 {[%emt 0:00:24]} 58. Kxe3 {[%emt 0:00:10]} Kd5 {[%emt 0:02:18]} 59. Qa8+ {[%emt 0:00:20]} Kd6 {[%emt 0:00:43]} 60. Qxa3 {[%emt 0:00:05]} Kd5 {[%emt 0:00:29]} 61. Qb3+ {[%emt 0:00:33]} Kd6 {[%emt 0:00:11]} 62. Qc4 {[%emt 0:00:41]} g5 {[%emt 0:00:34]} 63. Qa6+ {[%emt 0:00:05]} Ke7 {[%emt 0:01:28]} 64. Qa7+ {[%emt 0:00:11]} Kd6 {[%emt 0:00:02]} 65. Qb6+ {[%emt 0:00:09]} Ke7 {[%emt 0:01:17]} (65... Kd5 $142 66. Qd8+ Kc6 67. Qxg5 Rd6 68. Kxe4 Rd4+ 69. Ke3 Kd6 70. Qg6+ Kc7) 66. Qxc5+ $18 {[%emt 0:00:09]} Kf6 {[%emt 0:00:02]} 67. Qf8+ {[%emt 0:00:31]} Kg6 {[%emt 0:00:18]} 68. Qg8+ {[%emt 0:00:10]} Kf6 {[%emt 0:00:08]} 69. Qh8+ $2 {[%emt 0:00:35]} (69. Qh7 Re8 70. Qh5) 69... Kf7 $2 {[%emt 0:01:32]} (69... Kg6 70. Qg8+ Kf6) 70. Qh7+ {[%emt 0:00:17]} Kf6 {[%emt 0:00:18]} 71. Qh6+ {[%emt 0:00:21]} (71. Qh3 $142 {Black must now prevent Qh7.} Re8 72. Qf1+ Kg6 73. Qa6+ Kf5 74. Qb5+ Re5 75. Qf1+ Kg6 76. Qa6+ Kg7 77. Qa1) 71... Kf5 $18 {[%emt 0:00:05]} 72. Qg7 {[%emt 0:00:21]} Ra6 $2 {[%emt 0:01:20]} (72... Rf6 $18 73. Qd7+ Kg6 74. Kxe4 Rf2) 73. Qf7+ $2 {[%emt 0:00:57]} (73. Qh7+ Kg4 74. Qxe4+ Kh5 75. Qe8+ Kh6 76. Qf7 Rg6 77. Ke4 Rg7 78. Qf5 Re7+ 79. Kf3) 73... Ke5 $2 {[%emt 0:00:17]} (73... Rf6 $18 74. Qd7+ Kg6 75. Kxe4 Rf2 76. Qc6+ Rf6 77. Qe8+ Kh6) 74. Qc7+ $2 {[%emt 0:01:05]} (74. Qe7+ {mates} Re6 75. Qxg5+ Kd6 76. Kd4 Kd7 77. Qf5 Ke7 78. Kd5 Rf6 79. Qxe4+ Kd7 80. Qg4+ Ke7 81. Qh4) 74... Rd6 $2 {[%emt 0:00:08]} (74... Kf6 $18 75. Qc2 Re6) 75. Qc5+ {[%emt 0:00:11]} Ke6 {[%emt 0:00:45]} 76. Kxe4 {[%emt 0:00:23]} g4 {[%emt 0:00:17]} 77. Qf5+ {[%emt 0:00:09]} Ke7 {[%emt 0:00:04]} 78. Ke5 {[%emt 0:00:05]} Ra6 {[%emt 0:00:52]} 79. Qh7+ {[%emt 0:01:15]} Kd8 {[%emt 0:00:26]} 80. Qd3+ {[%emt 0:00:00]} 1-0

[Event "8th Fischer Heraklion-GM 2022"]
[Site "Heraklion"]
[Date "2022.04.30"]
[Round "5.1"]
[White "Nikolaidis, Ioannis"]
[Black "Korneev, Oleg"]
[Result "1/2-1/2"]
[ECO "C92"]
[WhiteElo "2536"]
[BlackElo "2521"]
[Annotator "TA"]
[PlyCount "23"]
[EventDate "2022.04.18"]
[EventType "tourn"]
[EventCountry "GRE"]
[SourceTitle "playchess.com"]
[Source "ChessBase"]
[SourceQuality "1"]
[TimeControl "40/5400+30:1800+30"]

{[%evp 22,23,16,0]} 1. e4 {[%emt 0:00:53]} e5 {[%emt 0:00:09]} 2. Nf3 {[%emt 0:00:09]} Nc6 {[%emt 0:00:05]} 3. Bb5 {[%emt 0:00:07][%cal Bf1b5,Bb5a4,Ba4b3][%mdl 32]} a6 {[%emt 0:00:03]} 4. Ba4 {[%emt 0:00:09]} Nf6 {[%emt 0:00:04]} 5. O-O {[%emt 0:00:09]} Be7 {[%emt 0:00:03]} 6. Re1 {[%emt 0:00:07]} b5 {[%emt 0:00:04]} 7. Bb3 {[%emt 0:00:07]} d6 {[%emt 0:00:03]} 8. c3 {[%emt 0:00:08]} O-O {[%emt 0:00:03]} 9. h3 {[%emt 0:00:07]} Bb7 {[%emt 0:00:03]} 10. d4 {[%emt 0:00:06]} Re8 {[%emt 0:00:02] [#]} 11. Ng5 $146 {[%emt 0:00:05]} ({Predecessor:} 11. Nbd2 Bf8 12. a4 exd4 13. cxd4 Na5 14. Bc2 b4 15. b3 g6 16. Bb2 d5 17. e5 Nh5 18. Nf1 Rc8 19. Ne3 c5 20. dxc5 Rxc5 {1-0 (65) Giri,A (2772)-Le,Q (2709) chess24.com INT 2022}) 11... Rf8 {[%emt 0:00:03]} 12. Nf3 {[%emt 0:00:04]} 1/2-1/2

[Event "8th Fischer Heraklion-GM 2022"]
[Site "Heraklion"]
[Date "2022.04.30"]
[Round "5.2"]
[White "Materia, Marco"]
[Black "Szwed, Jacek"]
[Result "1-0"]
[ECO "D41"]
[WhiteElo "2398"]
[BlackElo "2360"]
[Annotator "TA"]
[PlyCount "59"]
[EventDate "2022.04.18"]
[EventType "tourn"]
[EventCountry "GRE"]
[SourceTitle "playchess.com"]
[Source "ChessBase"]
[SourceQuality "1"]
[TimeControl "40/5400+30:1800+30"]

{[%evp 14,59,32,36,30,21,25,21,29,22,31,32,36,31,38,39,48,47,82,70,145,144,163,154,137,141,188,169,208,203,200,209,200,190,259,255,577,577,568,567,717,702,690,684,684,665,709,706]} 1. d4 {[%emt 0:00:02]} Nf6 {[%emt 0:00:09]} 2. c4 {[%emt 0:00:07]} e6 {[%emt 0:00:04]} 3. Nf3 {[%emt 0:00:14]} d5 {[%emt 0:00:07]} 4. Nc3 {[%emt 0:00:15]} c5 {[%emt 0:00:41]} 5. cxd5 {[%emt 0:00:46]} Nxd5 {[%emt 0:00:00]} 6. g3 {[%emt 0:00:49]} cxd4 {[%emt 0:23:03]} 7. Nxd5 {[%emt 0:01:20]} Qxd5 {[%emt 0:15:21]} 8. Qxd4 {[%emt 0:00:25]} Nc6 {[%emt 0:01:57] D41: Queen's Gambit Declined: Semi-Tarrasch with 5 cxd5.} 9. Qxd5 {[%emt 0:03:03]} exd5 {[%emt 0:00:01]} 10. Bg2 {[%emt 0:01:33]} Be7 {[%emt 0:09:37] The position is equal.} 11. Bg5 {[%emt 0:03:39] [#]} Bf5 $146 {[%emt 0:02:28]} ({Predecessor:} 11... Bc5 12. O-O Be6 13. Rfd1 O-O 14. Rac1 Bb6 15. Bf4 Rad8 16. Ne5 Nxe5 17. Bxe5 d4 {1-0 (31) Andersson,U (2545)-Vadasz,L (2505) Malgrat de Mar 1978}) 12. O-O {[%emt 0:07:30]} Be4 {[%emt 0:00:51]} 13. Bxe7 {[%emt 0:01:12]} Kxe7 {[%emt 0:00:01]} 14. Rfd1 {[%emt 0:01:30]} Rac8 {[%emt 0:01:13]} 15. Rac1 {[%emt 0:01:48]} Rhd8 {[%emt 0:02:51]} 16. Bh3 {[%emt 0:04:40]} Rc7 {[%emt 0:08:50]} (16... Rb8 $14) 17. Nd4 $16 {[%emt 0:10:17] And now Nb5 would win.} a6 {[%emt 0:06:40] Inhibits Nb5.} 18. f3 {[%emt 0:09:02]} Bg6 {[%emt 0:00:23]} 19. Kf2 {[%emt 0:01:13] White is more active.} Rd6 {[%emt 0:02:15]} (19... Re8 $16) 20. Rc5 $18 {[%emt 0:05:50][%cal Ob2b4]} Rd8 {[%emt 0:08:11]} 21. b4 {[%emt 0:11:15] [#] b5 is the strong threat.} Kd6 {[%emt 0:05:33]} 22. Nxc6 {[%emt 0:02:02]} bxc6 {[%emt 0:00:01]} 23. e4 $1 {[%emt 0:00:24][%cal Re4d5]} Rb8 {[%emt 0:07:33]} (23... a5 {keeps fighting.}) 24. a3 {[%emt 0:00:27][%cal Re4d5]} (24. exd5 Rxb4 25. Ra5 Rb2+ 26. Kg1 cxd5 $11) 24... Rbb7 $2 {[%emt 0:01:37] [#]} (24... Ra7 {is tougher.} 25. exd5 cxd5 26. Rdxd5+ (26. Rcxd5+ Ke7 $18) 26... Ke7) 25. exd5 {[%emt 0:01:21] White is clearly winning.} cxd5 {[%emt 0:00:01]} 26. Rcxd5+ {[%emt 0:00:07]} Ke7 {[%emt 0:00:01]} 27. Re1+ {[%emt 0:01:18]} Kf6 {[%emt 0:00:01]} 28. Rd6+ {[%emt 0:01:24]} Kg5 {[%emt 0:00:01]} 29. f4+ {[%emt 0:00:22][%cal Bf3f4,Bf4f5][%mdl 32]} Kh5 {[%emt 0:00:56]} 30. f5 {[%emt 0:01:34] Weighted Error Value: White=0.01 (flawless) /Black=0.45} 1-0

[Event "8th Fischer Heraklion-GM 2022"]
[Site "Heraklion"]
[Date "2022.04.30"]
[Round "5.4"]
[White "Vaishali R"]
[Black "Milikow, Yoav"]
[Result "1-0"]
[ECO "C65"]
[WhiteElo "2411"]
[BlackElo "2383"]
[Annotator "TA"]
[PlyCount "55"]
[EventDate "2022.04.18"]
[EventType "tourn"]
[EventCountry "GRE"]
[SourceTitle "playchess.com"]
[Source "ChessBase"]
[SourceQuality "1"]
[TimeControl "40/5400+30:1800+30"]

{[%evp 9,55,14,14,6,14,14,10,1,10,4,9,0,2,6,6,0,2,-9,48,-10,0,-25,0,-2,0,-21,12,0,119,112,113,112,127,115,120,101,221,220,271,275,283,250,259,0,255,228,1096,1066]} 1. e4 {[%emt 0:00:35]} e5 {[%emt 0:01:09]} 2. Nf3 {[%emt 0:00:05]} Nc6 {[%emt 0:00:18]} 3. Bb5 {[%emt 0:00:04]} Nf6 {[%emt 0:00:40]} 4. d3 {[%emt 0:00:35]} Bc5 {[%emt 0:05:28]} 5. Bxc6 {[%emt 0:00:29]} dxc6 {[%emt 0:00:09]} 6. O-O {[%emt 0:00:10] C65: Ruy Lopez: Berlin Defence (3...Nf6), unusual lines and 4 0-0 Bc5.} Qe7 {[%emt 0:00:20]} 7. Nbd2 {[%emt 0:00:28]} Bg4 {[%emt 0:00:30]} 8. a3 {[%emt 0:01:31] The position is equal.} Nd7 {[%emt 0:01:11]} 9. h3 {[%emt 0:00:34]} Bh5 {[%emt 0:00:17]} 10. b4 {[%emt 0:08:14]} Bd6 {[%emt 0:00:53]} 11. Nc4 {[%emt 0:00:58]} f6 {[%emt 0:01:25]} 12. Ne3 {[%emt 0:04:28]} Nf8 {[%emt 0:01:32]} 13. c4 {[%emt 0:19:12] [#] Threatens to win with c5.} Qd7 {[%emt 0:05:33] [#]} (13... b6 $11) 14. Nf5 $146 {[%emt 0:22:48]} (14. c5 $14 Bxf3 15. Qxf3) ({Predecessor:} 14. c5 Be7 15. Nxe5 Bxd1 16. Nxd7 Be2 17. Re1 Bxd3 18. Nxf8 Rxf8 19. Nf5 Rf7 20. Bf4 {1-0 (42) So,W (2767)-Nakamura,H (2745) Chess.com INT 2020}) 14... Ne6 {[%emt 0:03:19]} 15. Be3 {[%emt 0:01:34]} Bf8 {[%emt 0:05:13]} 16. Ng3 {[%emt 0:16:51] Pair of Knights!} Bf7 {[%emt 0:09:41]} 17. Qc2 {[%emt 0:05:00]} h5 {[%emt 0:05:04]} (17... c5 $5 {[%cal Rc5b4]}) 18. Rfd1 {[%emt 0:10:41]} Nd4 {[%emt 0:04:17]} (18... c5 $11) 19. Bxd4 $16 {[%emt 0:00:41]} exd4 {[%emt 0:00:02]} 20. Nf5 {[%emt 0:00:46]} h4 {[%emt 0:03:01]} 21. Qb2 {[%emt 0:00:36]} (21. N3xd4 g6 22. Qb2 gxf5 23. Nxf5 Qe6 $17) 21... Bh5 {[%emt 0:02:30] [#] aiming for ...Bxf3.} 22. Qxd4 {[%emt 0:00:20] 0x0.00261726e58cdp-1022s more active pieces. The black rooks are badly placed.} Qe6 {[%emt 0:04:49]} (22... Qxd4 $16 23. N5xd4 Bd6) 23. N5xh4 $18 {[%emt 0:03:53]} Rh7 {[%emt 0:01:45]} 24. Re1 {[%emt 0:00:47] Strongly threatening e5.} Be7 {[%emt 0:02:43]} 25. e5 {[%emt 0:00:51]} f5 {[%emt 0:00:44]} 26. Qf4 {[%emt 0:00:03] Prevents g5.} (26. Qe3 $18) 26... g6 $2 {[%emt 0:02:12][%mdl 8192]} (26... g5 $1 $11 27. Qxf5 (27. Nxg5 Qh6 $14) 27... Qg8) 27. Ng5 {[%emt 0:00:27]} Qd7 {[%emt 0:00:19]} (27... Bxg5 28. Qxg5 Qe7) 28. Nxh7 {[%emt 0:00:10] Weighted Error Value: White=0.22 (precise) /Black=0.38} 1-0

[Event "8th Fischer Heraklion-GM 2022"]
[Site "Heraklion"]
[Date "2022.04.30"]
[Round "6.1"]
[White "Korneev, Oleg"]
[Black "Jahncke, Giso"]
[Result "1-0"]
[ECO "C54"]
[WhiteElo "2521"]
[BlackElo "2326"]
[Annotator "TA"]
[PlyCount "62"]
[EventDate "2022.04.18"]
[EventType "tourn"]
[EventCountry "GRE"]
[SourceTitle "playchess.com"]
[Source "ChessBase"]
[SourceQuality "1"]
[TimeControl "40/5400+30:1800+30"]

{[%evp 10,62,8,21,19,15,13,14,11,12,14,7,15,0,20,13,7,0,0,0,0,0,0,0,0,0,0,-18,0,-9,0,-19,-12,-38,70,37,43,24,34,0,60,44,77,68,93,96,94,81,375,368,452,441,554,562,529]} 1. e4 {[%emt 0:08:02]} e5 {[%emt 0:00:09]} 2. Nf3 {[%emt 0:00:07]} Nc6 {[%emt 0:00:06]} 3. Bc4 {[%emt 0:00:14]} Nf6 {[%emt 0:00:07]} 4. d3 {[%emt 0:00:08]} Bc5 {[%emt 0:00:08]} 5. O-O {[%emt 0:00:34]} d6 {[%emt 0:00:14]} 6. c3 {[%emt 0:00:08]} a5 {[%emt 0:00:17] Inhibits b4. 6...h6 is setting a new trend. C54: Giuoco Piano: 4 c3 Nf6, main lines with 5 d4 and 5 d3.} 7. Nbd2 {[%emt 0:02:30][%cal Bb1d2,Bd2f1,Bf1e3][%mdl 32]} Ba7 {[%emt 0:00:17]} 8. Re1 {[%emt 0:05:50]} O-O {[%emt 0:00:10] The position is equal.} 9. h3 {[%emt 0:00:09]} Be6 {[%emt 0:01:23]} 10. Bb3 {[%emt 0:12:18] [#]} Bxb3 $146 {[%emt 0:12:10]} ({Predecessor:} 10... Ne7 11. Bxe6 fxe6 12. Qb3 Qd7 13. d4 a4 14. Qc2 Nh5 15. dxe5 dxe5 16. Nc4 Rxf3 17. gxf3 {1-0 (44) Kazarian,A (2231)-Longson,S (2103) Baku 2016}) 11. Qxb3 {[%emt 0:06:48]} Qd7 {[%emt 0:01:24]} 12. Nf1 {[%emt 0:02:08]} h6 {[%emt 0:06:11]} 13. a4 {[%emt 0:11:10]} Rfe8 {[%emt 0:05:03]} 14. Be3 {[%emt 0:00:09]} Bxe3 {[%emt 0:07:37]} 15. Nxe3 {[%emt 0:00:08]} Ne7 {[%emt 0:08:33][%cal Bc6e7,Be7g6,Bg6f4][%mdl 32]} 16. Rad1 {[%emt 0:11:54]} ({Avoid the trap} 16. Qxb7 $2 Reb8 17. Qxa8 Rxa8 $19) 16... Ng6 {[%emt 0:03:05]} 17. Nh2 {[%emt 0:07:31]} ({But not} 17. Qxb7 $2 Reb8 18. Qxa8 Rxa8 $19) 17... b6 {[%emt 0:09:23]} 18. Nhg4 {[%emt 0:00:06]} Nxg4 {[%emt 0:01:39]} 19. hxg4 {[%emt 0:00:13]} Nf4 {[%emt 0:00:41]} 20. g3 {[%emt 0:00:26]} Ne6 {[%emt 0:00:12]} 21. Qc2 {[%emt 0:01:24]} g6 {[%emt 0:07:42]} ({Black should try} 21... b5 $15) 22. Kg2 {[%emt 0:00:15]} Kg7 {[%emt 0:01:19]} 23. Rh1 {[%emt 0:02:33]} Rh8 {[%emt 0:01:27]} 24. d4 {[%emt 0:00:56] [#] Strongly threatening dxe5.} exd4 {[%emt 0:04:01]} (24... f6 $11) 25. cxd4 $14 {[%emt 0:00:03]} c5 {[%emt 0:00:25]} 26. dxc5 {[%emt 0:05:58]} bxc5 {[%emt 0:00:28]} 27. Qc3+ {[%emt 0:00:13]} f6 {[%emt 0:02:45]} 28. Rd5 {[%emt 0:06:17] Threatens to win with Nc4. White is more active.} Rab8 $2 {[%emt 0:05:23][%mdl 8192] This move loses the game for Black.} (28... Nc7 $16 {was worth a try.}) 29. Rhd1 $18 {[%emt 0:03:01]} Nd4 {[%emt 0:00:08] [#]} 30. Qxc5 {[%emt 0:00:21][%mdl 512]} dxc5 {[%emt 0:00:50]} (30... Nb3 31. Qxd6) 31. Rxd7+ {[%emt 0:00:14]} Kf8 {[%emt 0:00:09] Weighted Error Value: White=0.06 (flawless) /Black=0.39} 1-0

[Event "8th Fischer Heraklion-GM 2022"]
[Site "Heraklion"]
[Date "2022.04.30"]
[Round "6.2"]
[White "Milikow, Yoav"]
[Black "Samaridis, Konstantinos"]
[Result "1-0"]
[ECO "E39"]
[WhiteElo "2383"]
[BlackElo "2064"]
[Annotator "TA"]
[PlyCount "61"]
[EventDate "2022.04.18"]
[EventType "tourn"]
[EventCountry "GRE"]
[SourceTitle "playchess.com"]
[Source "ChessBase"]
[SourceQuality "1"]
[TimeControl "40/5400+30:1800+30"]

{[%evp 26,61,0,4,16,17,22,23,11,0,0,0,108,90,88,11,151,146,195,200,318,292,421,417,386,366,633,587,1214,1205,1273,1272,29985,29986,29986,29987,29987,29988]} 1. d4 {[%emt 0:00:12]} Nf6 {[%emt 0:15:23]} 2. c4 {[%emt 0:00:07]} e6 {[%emt 0:00:03]} 3. Nc3 {[%emt 0:00:06]} Bb4 {[%emt 0:00:05]} 4. Qc2 {[%emt 0:00:16]} O-O {[%emt 0:00:06]} 5. Nf3 {[%emt 0:00:12]} c5 {[%emt 0:01:06]} 6. dxc5 {[%emt 0:00:12]} Na6 {[%emt 0:00:10][%cal Bb8a6,Ba6c5,Bc5e4][%mdl 32]} 7. g3 {[%emt 0:00:24]} Nxc5 {[%emt 0:01:06]} 8. Bg2 {[%emt 0:00:11]} Nce4 {[%emt 0:00:08]} 9. O-O {[%emt 0:00:21]} Nxc3 {[%emt 0:00:11]} 10. bxc3 {[%emt 0:00:04]} Be7 {[%emt 0:00:13]} 11. e4 {[%emt 0:00:17]} d6 {[%emt 0:00:08]} 12. e5 {[%emt 0:00:19]} dxe5 {[%emt 0:00:11]} 13. Nxe5 {[%emt 0:00:07]} Qc7 {[%emt 0:00:17]} 14. Qe2 {[%emt 0:00:41]} Nd7 {[%emt 0:02:03] E39: Nimzo-Indian: Classical: 4...c5 5 dxc5 0-0.} 15. Bf4 {[%emt 0:00:40][%cal Oe5g6] [#] Strongly threatening Ng6!} Nxe5 {[%emt 0:00:31]} 16. Bxe5 {[%emt 0:00:07]} Bd6 {[%emt 0:00:25] White has an edge.} 17. Rfe1 {[%emt 0:00:29]} Bxe5 {[%emt 0:00:29] 17...Rb8 deserves study.} 18. Qxe5 {[%emt 0:00:03] [#]} Qe7 $146 {[%emt 0:02:05]} (18... Qxc4 $11 19. Red1 a5) ({Predecessor:} 18... Qxe5 19. Rxe5 Rb8 20. Ra5 Bd7 21. Rxa7 Bc6 22. Bxc6 bxc6 23. Ra6 Rfd8 24. Rxc6 g6 {1-0 (46) Nakamura,H (2741)-Aronian,L (2772) Kolkata 2019}) 19. c5 {[%emt 0:05:16][%cal Bc4c5,Bc5d6][%mdl 32]} f6 {[%emt 0:02:15]} 20. Qd6 {[%emt 0:01:10]} (20. Qe3 $16) 20... Kf7 {[%emt 0:01:08]} (20... Qxd6 $1 $11 {remains equal.} 21. cxd6 Rd8) 21. Rab1 $16 {[%emt 0:02:21] 0x0.00198fc8b721dp-1022s more active pieces. The black rooks are badly placed.} Qxd6 {[%emt 0:02:13]} (21... Re8 $16 {keeps fighting.} 22. Qxe7+ Kxe7) 22. cxd6 $18 {[%emt 0:00:03] aiming for c4.} Rb8 {[%emt 0:00:22]} (22... Rd8 {is a better defense.}) 23. c4 {[%emt 0:00:28][%cal Bc3c4,Bc4c5][%mdl 32]} Rd8 {[%emt 0:01:29]} (23... Bd7 {was called for.} 24. Bxb7 e5) 24. c5 {[%emt 0:00:21]} e5 {[%emt 0:02:29]} 25. Bd5+ {[%emt 0:01:34]} Kf8 $2 {[%emt 0:02:07] [#]} (25... Be6) 26. f4 {[%emt 0:00:42]} b6 {[%emt 0:01:51]} 27. fxe5 {[%emt 0:00:27]} Bf5 {[%emt 0:00:49]} 28. e6 {[%emt 0:00:25]} Bxb1 {[%emt 0:00:26]} 29. e7+ {[%emt 0:00:06] White mates.} Ke8 {[%emt 0:00:03]} 30. exd8=Q+ {[%emt 0:00:18]} Kxd8 {[%emt 0:00:08]} 31. c6 {[%emt 0:00:23] Weighted Error Value: White=0.19 (very precise) /Black=1.28} 1-0